fUSD/lending_fUSD_20250306
["ID","MTS","AMOUNT","RATE_DAILY","PERIOD"]
[355543895,1741253440068,-591.59,0.00011795,2]
[355543896,1741253440079,-1309.44,0.00011795,2]
[355543897,1741253440089,-500.0,0.00011795,2]
[355543898,1741253440098,-500.0,0.00011795,2]
[355543899,1741253440108,-1102.66,0.00011795,2]
[355543900,1741253440120,-941.35,0.00011795,2]
[355543901,1741253440132,-2682.65,0.00011795,2]
[355543902,1741253440145,-1047.09,0.00011795,2]
[355543903,1741253440159,-607.96,0.00011795,2]
[355543904,1741253440171,-866.73,0.00011795,2]
[355543905,1741253440183,-543.14,0.00011795,2]
[355543906,1741253440194,-664.43,0.00011795,2]
[355543907,1741253440205,-500.0,0.00011795,2]
[355543908,1741253440217,-1241.46,0.00011795,2]
[355543909,1741253440229,-404.17697157,0.00011795,2]
[355543910,1741253440242,-500.0,0.00011796,2]
[355543911,1741253440254,-532.89227805,0.00011796,2]
[355543913,1741253440266,-519.90007505,0.00011796,2]
[355543915,1741253440279,-510.02,0.00011796,2]
[355543916,1741253440291,-500.0,0.00011796,2]
[355543917,1741253440303,-500.0,0.00011796,2]
[355543918,1741253440314,-500.0,0.00011796,2]
[355543919,1741253440331,-500.0,0.00011796,2]
[355543920,1741253440343,-500.0,0.00011796,2]
[355543921,1741253440354,-500.0,0.00011796,2]
[355543922,1741253440366,-500.0,0.00011796,2]
[355543923,1741253440376,-500.0,0.00011796,2]
[355543924,1741253440386,-532.73,0.00011796,2]
[355543925,1741253440403,-500.0,0.00011796,2]
[355543926,1741253440415,-500.0,0.00011796,2]
[355543927,1741253440427,-541.58,0.00011796,2]
[355543928,1741253440439,-500.0,0.00011796,2]
[355543929,1741253440451,-500.0,0.00011796,2]
[355543930,1741253440464,-500.0,0.00011796,2]
[355543931,1741253440476,-500.0,0.00011796,2]
[355543932,1741253440491,-500.0,0.00011796,2]
[355543933,1741253440503,-500.0,0.00011796,2]
[355543934,1741253440515,-500.0,0.00011796,2]
[355543935,1741253440528,-500.0,0.00011796,2]
[355543936,1741253440545,-500.0,0.00011796,2]
[355543937,1741253440556,-500.0,0.00011796,2]
[355543938,1741253440570,-500.0,0.00011796,2]
[355543939,1741253440583,-500.0,0.00011796,2]
[355543940,1741253440595,-500.0,0.00011796,2]
[355543941,1741253440607,-171.55634352,0.00011796,2]
[355543942,1741253440622,-500.0,0.00011796,2]
[355543943,1741253440634,-500.0,0.00011796,2]
[355543944,1741253440647,-500.0,0.00011796,2]
[355543945,1741253440658,-500.0,0.00011796,2]
[355543946,1741253440671,-500.0,0.00011796,2]
[355543947,1741253440683,-500.0,0.00011796,2]
[355543948,1741253440695,-500.0,0.00011796,2]
[355543949,1741253440708,-500.0,0.00011796,2]
[355543950,1741253440720,-500.0,0.00011796,2]
[355543951,1741253440732,-500.0,0.00011796,2]
[355543952,1741253440744,-500.0,0.00011796,2]
[355543953,1741253440755,-500.0,0.00011796,2]
[355543954,1741253440767,-500.0,0.00011796,2]
[355543955,1741253440778,-569.12261371,0.00011796,2]
[355543956,1741253440789,-500.0,0.00011796,2]
[355543957,1741253440801,-500.0,0.00011796,2]
[355543958,1741253440811,-500.0,0.00011796,2]
[355543959,1741253440825,-500.0,0.00011796,2]
[355543960,1741253440838,-521.26,0.00011796,2]
[355543961,1741253440852,-500.0,0.00011796,2]
[355543962,1741253440863,-500.0,0.00011796,2]
[355543963,1741253440874,-500.0,0.00011796,2]
[355543964,1741253440885,-566.14,0.00011796,2]
[355543965,1741253440894,-500.0,0.00011796,2]
[355543966,1741253440902,-500.0,0.00011796,2]
[355543967,1741253440912,-522.846505,0.00011796,2]
[355543968,1741253440921,-500.0,0.00011796,2]
[355543969,1741253440931,-638.65,0.00011796,2]
[355543970,1741253440943,-517.25823944,0.00011796,2]
[355543971,1741253440954,-500.0,0.00011796,2]
[355543972,1741253440965,-500.0,0.00011796,2]
[355543973,1741253440976,-500.0,0.00011796,2]
[355543974,1741253440986,-500.0,0.00011796,2]
[355543975,1741253440997,-717.18,0.00011796,2]
[355543976,1741253441008,-500.0,0.00011796,2]
[355543977,1741253441020,-500.0,0.00011796,2]
[355543978,1741253441030,-500.0,0.00011796,2]
[355543979,1741253441041,-500.0,0.00011796,2]
[355543980,1741253441053,-355.47645566,0.00011796,2]
[355543981,1741253441067,-500.0,0.00011796,2]
[355543982,1741253441079,-500.0,0.00011796,2]
[355543983,1741253441091,-510.15942939,0.00011796,2]
[355543984,1741253441101,-500.0,0.00011796,2]
[355543985,1741253441112,-484.83,0.00011796,2]
[355543986,1741253441124,-500.0,0.00011796,2]
[355543987,1741253441135,-500.0,0.00011796,2]
[355543988,1741253441146,-500.0,0.00011796,2]
[355543989,1741253441157,-500.0,0.00011796,2]
[355543990,1741253441168,-500.0,0.00011796,2]
[355543991,1741253441179,-500.0,0.00011796,2]
[355543992,1741253441191,-500.0,0.00011796,2]
[355543993,1741253441202,-500.0,0.00011796,2]
[355543994,1741253441213,-540.06,0.00011796,2]
[355543995,1741253441224,-500.0,0.00011796,2]
[355543996,1741253441235,-500.0,0.00011796,2]
[355543997,1741253441247,-500.0,0.00011796,2]
[355543998,1741253441258,-500.0,0.00011796,2]
[355543999,1741253441269,-673.59,0.00011796,2]
[355544000,1741253441280,-570.37816878,0.00011796,2]
[355544001,1741253441290,-500.0,0.00011796,2]
[355544002,1741253441301,-500.0,0.00011796,2]
[355544003,1741253441313,-500.0,0.00011796,2]
[355544004,1741253441324,-500.0,0.00011796,2]
[355544005,1741253441335,-462.05997535,0.00011796,2]
[355544006,1741253441346,-500.0,0.00011796,2]
[355544007,1741253441358,-514.71417687,0.00011796,2]
[355544008,1741253441369,-500.0,0.00011796,2]
[355544009,1741253441380,-500.0,0.00011796,2]
[355544010,1741253441391,-270.36,0.00011796,2]
[355544011,1741253441402,-500.0,0.00011796,2]
[355544012,1741253441413,-500.0,0.00011796,2]
[355544013,1741253441424,-500.0,0.00011796,2]
[355544014,1741253441435,-500.0,0.00011796,2]
[355544015,1741253441446,-500.0,0.00011796,2]
[355544016,1741253441457,-500.0,0.00011796,2]
[355544017,1741253441467,-280.2,0.00011796,2]
[355544018,1741253441479,-500.0,0.00011796,2]
[355544019,1741253441490,-500.0,0.00011796,2]
[355544020,1741253441501,-441.65246287,0.00011796,2]
[355544021,1741253441511,-500.0,0.00011796,2]
[355544022,1741253441523,-162.06,0.00011796,2]
[355544023,1741253441534,-500.0,0.00011796,2]
[355544024,1741253441545,-505.42,0.00011796,2]
[355544025,1741253441556,-500.0,0.00011796,2]
[355544026,1741253441566,-500.0,0.00011796,2]
[355544027,1741253441579,-500.0,0.00011796,2]
[355544028,1741253441590,-500.0,0.00011796,2]
[355544029,1741253441602,-500.0,0.00011796,2]
[355544030,1741253441613,-500.0,0.00011796,2]
[355544031,1741253441625,-758.79,0.00011796,2]
[355544032,1741253441641,-500.0,0.00011796,2]
[355544033,1741253441652,-816.88,0.00011796,2]
[355544034,1741253441664,-315.5,0.00011796,2]
[355544035,1741253441681,-500.0,0.00011796,2]
[355544036,1741253441693,-500.0,0.00011796,2]
[355544037,1741253441705,-529.73,0.00011796,2]
[355544038,1741253441718,-500.0,0.00011796,2]
[355544039,1741253441729,-500.0,0.00011796,2]
[355544040,1741253441741,-500.0,0.00011796,2]
[355544041,1741253441751,-500.0,0.00011796,2]
[355544042,1741253441762,-500.0,0.00011796,2]
[355544043,1741253441773,-500.0,0.00011796,2]
[355544044,1741253441784,-500.0,0.00011796,2]
[355544045,1741253441796,-895.3,0.00011796,2]
[355544046,1741253441808,-789.93,0.00011796,2]
[355544047,1741253441819,-500.0,0.00011796,2]
[355544048,1741253441832,-500.0,0.00011796,2]
[355544049,1741253441843,-500.0,0.00011796,2]
[355544050,1741253441855,-500.0,0.00011796,2]
[355544051,1741253441866,-500.0,0.00011796,2]
[355544052,1741253441878,-515.5,0.00011796,2]
[355544053,1741253441888,-500.0,0.00011796,2]
[355544054,1741253441899,-314.46,0.00011796,2]
[355544055,1741253441911,-921.84,0.00011796,2]
[355544056,1741253441922,-454.35,0.00011796,2]
[355544057,1741253441933,-500.0,0.00011796,2]
[355544058,1741253441944,-500.0,0.00011796,2]
[355544059,1741253441955,-468.84,0.00011796,2]
[355544060,1741253441967,-881.42,0.00011796,2]
[355544061,1741253441979,-513.99,0.00011796,2]
[355544062,1741253441989,-664.24,0.00011796,2]
[355544063,1741253442001,-350.0,0.00011796,2]
[355544064,1741253442012,-500.0,0.00011796,2]
[355544065,1741253442023,-500.0,0.00011796,2]
[355544066,1741253442034,-500.0,0.00011796,2]
[355544067,1741253442045,-510.22,0.00011796,2]
[355544068,1741253442055,-724.74,0.00011796,2]
[355544069,1741253442065,-392.97,0.00011796,2]
[355544070,1741253442076,-500.0,0.00011796,2]
[355544071,1741253442086,-538.83,0.00011796,2]
[355544072,1741253442097,-500.0,0.00011796,2]
[355544073,1741253442107,-661.07,0.00011796,2]
[355544074,1741253442118,-637.0,0.00011796,2]
[355544075,1741253442128,-1417.05,0.00011796,2]
[355544076,1741253442139,-628.48,0.00011796,2]
[355544077,1741253442149,-546.82,0.00011796,2]
[355544078,1741253442159,-500.0,0.00011796,2]
[355544079,1741253442170,-702.76,0.00011796,2]
[355544080,1741253442181,-569.17,0.00011796,2]
[355544081,1741253442191,-500.0,0.00011796,2]
[355544082,1741253442202,-996.67,0.00011796,2]
[355544083,1741253442213,-1363.79,0.00011796,2]
[355544084,1741253442223,-500.0,0.00011796,2]
[355544085,1741253442234,-500.0,0.00011796,2]
[355544086,1741253442244,-3196.99,0.00011796,2]
[355544087,1741253442255,-1738.45,0.00011796,2]
[355544088,1741253442266,-500.0,0.00011796,2]
[355544090,1741253442277,-787.71,0.00011796,2]
[355544091,1741253442288,-2888.75,0.00011796,2]
[355544092,1741253442299,-11157.4,0.00011796,2]
[355544093,1741253442310,-658.37,0.00011796,2]
[355544094,1741253442321,-861.93,0.00011796,2]
[355544095,1741253442335,-734.63,0.00011796,2]
[355544096,1741253442346,-6591.56,0.00011796,2]
[355544097,1741253442358,-500.0,0.00011796,2]
[355544098,1741253442369,-3160.18,0.00011796,2]
[355544099,1741253442380,-500.0,0.00011796,2]
[355544100,1741253442392,-1263.09,0.00011796,2]
[355544101,1741253442403,-245.73409146,0.00011796,2]
[355544102,1741253442414,-500.0,0.00011796,2]
[355544103,1741253442426,-500.0,0.00011796,2]
[355544104,1741253442437,-3646.34,0.00011796,2]
[355544105,1741253442448,-2063.98,0.00011796,2]
[355544106,1741253442459,-698.39,0.00011796,2]
[355544108,1741253442470,-1505.89,0.00011796,2]
[355544110,1741253442481,-1431.77,0.00011796,2]
[355544112,1741253442492,-1250.91,0.00011796,2]
[355544114,1741253442504,-9031.57,0.00011796,2]
[355544116,1741253442515,-500.0,0.00011796,2]
[355544118,1741253442525,-1364.02,0.00011796,2]
[355544121,1741253442535,-624.01,0.00011796,2]
[355544124,1741253442546,-602.70852381,0.00011796,2]
[355544126,1741253442556,-500.0,0.00011796,2]
[355544128,1741253442566,-500.0,0.00011796,2]
[355544130,1741253442579,-526.44,0.00011796,2]
[355544131,1741253442590,-500.0,0.00011796,2]
[355544133,1741253442601,-205.67289733,0.00011796,2]
[355544139,1741253442642,-302.75224914,0.00011795,2]
[355544148,1741253443487,-270.59775086,0.00011795,2]
[355544149,1741253443497,-21.19609738,0.00011795,2]
[355544150,1741253444148,-478.80390262,0.00011795,2]
[355544151,1741253444158,-298.71609738,0.00011796,2]
[355544156,1741253445597,-2289.64,0.00011795,2]
[355544157,1741253445606,-1097.74100529,0.00011796,2]
[355544158,1741253445616,-500.0,0.00011796,2]
[355544159,1741253445631,-412.23966039,0.00011796,2]
[355544160,1741253592951,500.0,0.00010164,2]
[355544161,1741254064422,630.56,8.955e-05,2]
[355544162,1741254360856,-3440.45,0.000149,31]
[355544163,1741254360883,-3440.45,0.000149,31]
[355544164,1741254360909,-3440.45,0.000149,31]
[355544165,1741254360939,-3440.45,0.000149,31]
[355544166,1741254360966,-3440.45,0.000149,31]
[355544167,1741254360993,-3440.45,0.000149,31]
[355544168,1741254361021,-3440.45,0.000149,31]
[355544169,1741254361047,-3440.45,0.000149,31]
[355544170,1741254361072,-3440.45,0.000149,31]
[355544171,1741254361098,-3440.45,0.000149,31]
[355544172,1741254361123,-3440.45,0.000149,31]
[355544173,1741254361150,-3440.45,0.000149,31]
[355544174,1741254361175,-3440.45,0.000149,31]
[355544175,1741254361201,-3440.45,0.000149,31]
[355544176,1741254361227,-3440.45,0.000149,31]
[355544177,1741254361253,-3440.45,0.000149,31]
[355544178,1741254361276,-152.0,0.00014906,30]
[355544179,1741254361299,-152.0,0.00014987,31]
[355544180,1741254388914,-152.0,0.00015068,32]
[355544181,1741254388947,-152.0,0.00015148,33]
[355544182,1741254388971,-152.0,0.00015229,34]
[355544183,1741254388993,-152.0,0.0001531,35]
[355544184,1741254389027,-152.0,0.00015391,36]
[355544185,1741254389050,-152.0,0.00015472,37]
[355544186,1741254389072,-152.0,0.00015553,38]
[355544187,1741254389104,-152.0,0.00015634,39]
[355544188,1741254389126,-152.0,0.00015715,40]
[355544189,1741254389148,-152.0,0.00015796,41]
[355544190,1741254389170,-152.0,0.00015876,42]
[355544191,1741254389202,-152.0,0.00015957,43]
[355544192,1741254389224,-4000.0,0.00015987,30]
[355544193,1741254399589,-152.0,0.00016038,44]
[355544194,1741254399611,-163.0,0.00016082,30]
[355544195,1741254399633,-152.0,0.00016119,45]
[355544196,1741254399909,-152.0,0.000162,46]
[355544197,1741254399950,-4234.53,0.00016493,30]
[355544198,1741254399990,-522.4570554,0.00016879,30]
[355544199,1741254400040,-1610.19406239,0.0001688,30]
[355544200,1741254400088,-500.0,0.00016884,30]
[355544201,1741254400132,-500.0,0.00016884,30]
[355544202,1741254400177,-500.0,0.00016884,30]
[355544203,1741254400201,-500.0,0.00016884,30]
[355544204,1741254400223,-500.0,0.00016884,30]
[355544205,1741254400245,-500.0,0.00016884,30]
[355544206,1741254400267,-540.76791338,0.00016884,30]
[355544207,1741254400288,-804.18797992,0.0001689,30]
[355544208,1741254400311,-1145.0,0.00017,30]
[355544209,1741254400362,-5015.74751,0.00018,30]
[355544210,1741254400392,-4000.0,0.00018798,31]
[355544211,1741254415905,-152.0,0.00013612,14]
[355544212,1741254415934,-152.0,0.00013693,15]
[355544213,1741254415981,-152.0,0.00013773,16]
[355544214,1741254416004,-152.0,0.00013854,17]
[355544215,1741254416028,-152.0,0.00013935,18]
[355544216,1741254430366,-152.0,0.00013045,7]
[355544217,1741254430390,-152.0,0.00013126,8]
[355544218,1741254430425,-152.0,0.00013207,9]
[355544219,1741254430448,-152.0,0.00013288,10]
[355544220,1741254430474,-152.0,0.00013369,11]
[355544221,1741254430511,-152.0,0.0001345,12]
[355544222,1741254430534,-1380.0,0.00013463,7]
[355544223,1741254430557,-152.0,0.00013531,13]
[355544224,1741254430583,-500.0,0.00013698,7]
[355544225,1741254430606,-502.97004833,0.00013698,7]
[355544226,1741254430630,-200.17884063,0.00013699,10]
[355544227,1741254430653,-220.7363816,0.00013699,7]
[355544228,1741254430679,-297.0,0.00013699,13]
[355544229,1741254430703,-237.0,0.00013699,13]
[355544230,1741254430727,-500.0,0.00013699,13]
[355544231,1741254430750,-500.0,0.00013699,13]
[355544232,1741254430774,-311.0,0.00013699,13]
[355544233,1741254430799,-504.0,0.00013699,13]
[355544234,1741254430822,-500.0,0.00013699,13]
[355544235,1741254430844,-500.0,0.00013699,13]
[355544236,1741254430867,-500.0,0.00013699,13]
[355544237,1741254430889,-500.0,0.00013699,13]
[355544238,1741254430912,-500.0,0.00013699,13]
[355544239,1741254430939,-500.0,0.00013699,13]
[355544240,1741254430962,-500.0,0.00013699,13]
[355544241,1741254430987,-500.0,0.00013699,13]
[355544242,1741254431010,-500.0,0.00013699,13]
[355544243,1741254431035,-500.0,0.00013699,13]
[355544244,1741254431059,-258.0,0.00013699,13]
[355544245,1741254431082,-500.0,0.00013699,13]
[355544246,1741254431104,-500.0,0.00013699,13]
[355544247,1741254431127,-500.0,0.00013699,13]
[355544248,1741254431150,-500.0,0.00013699,13]
[355544249,1741254431172,-500.0,0.00013699,13]
[355544250,1741254431193,-500.0,0.00013699,13]
[355544251,1741254431216,-500.0,0.00013699,13]
[355544252,1741254431238,-500.0,0.00013699,13]
[355544253,1741254431259,-500.0,0.00013699,13]
[355544254,1741254431280,-500.0,0.00013699,13]
[355544255,1741254431301,-500.0,0.00013699,13]
[355544256,1741254431323,-500.0,0.00013699,13]
[355544257,1741254431345,-500.0,0.00013699,13]
[355544258,1741254431368,-500.0,0.00013699,13]
[355544259,1741254431389,-500.0,0.00013699,13]
[355544260,1741254431411,-500.0,0.00013699,13]
[355544261,1741254431432,-500.0,0.00013699,13]
[355544262,1741254431454,-500.0,0.00013699,13]
[355544263,1741254431475,-500.0,0.00013699,13]
[355544264,1741254431497,-500.0,0.00013699,13]
[355544265,1741254431519,-500.0,0.00013699,13]
[355544266,1741254431541,-500.0,0.00013699,13]
[355544267,1741254431562,-500.0,0.00013699,13]
[355544268,1741254431584,-450.0,0.00013699,13]
[355544269,1741254441386,-152.0,0.00014016,19]
[355544270,1741254441409,-152.0,0.00014097,20]
[355544271,1741254441431,-152.0,0.00014178,21]
[355544272,1741254441453,-152.0,0.00014259,22]
[355544273,1741254441484,-152.0,0.0001434,23]
[355544274,1741254441506,-152.0,0.0001442,24]
[355544275,1741254441528,-152.0,0.00014501,25]
[355544276,1741254441560,-152.0,0.00014582,26]
[355544277,1741254441582,-152.0,0.00014663,27]
[355544278,1741254441604,-152.0,0.00014744,28]
[355544279,1741254441635,-152.0,0.00014825,29]
[355544280,1741254441658,-13901.69155791,0.00015,15]
[355544281,1741254455556,-1229.46913125,0.00015146,15]
[355544282,1741254469450,-240544.16506616,0.00015,7]
[355544283,1741254469475,-96015.19205218,0.00015,7]
[355544284,1741254469499,-15012.0,0.00015,10]
[355544285,1741254469521,-1107.63946629,0.00015,10]
[355544286,1741254481515,-10802.72,0.0001568,7]
[355544287,1741254481538,-10802.72,0.0001568,7]
[355544288,1741254481560,-2060.43293456,0.0001568,7]
[355544294,1741254631725,-166.13,0.00010858,2]
[355544295,1741254631735,-287.42,0.0001095,2]
[355544296,1741254631746,-509.54,0.00010975,2]
[355544297,1741254631755,-1000.0,0.0001099,2]
[355544298,1741254631764,-550.0,0.00011,2]
[355544299,1741254631774,-630.56,0.00011219,2]
[355544300,1741254631784,-300.0,0.00011693,2]
[355544301,1741254631794,-2500.0,0.00011694,2]
[355544302,1741254631803,-750.0,0.00011694,2]
[355544303,1741254631814,-1379.91849444,0.00011694,2]
[355544304,1741254631824,-158.12184812,0.00011695,2]
[355544305,1741254631833,-150.73577029,0.00011695,2]
[355544306,1741254631843,-1442.7488,0.00011695,2]
[355544307,1741254631852,-2350.48416367,0.00011774,2]
[355544308,1741254631862,-150.0,0.00011774,2]
[355544309,1741254631871,-62218.95588344,0.00011775,2]
[355544310,1741254631882,-151.0,0.00011788,2]
[355544311,1741254631892,-292.41227051,0.00011788,2]
[355544312,1741254631901,-500.0,0.00011793,2]
[355544313,1741254631911,-971.45,0.00011793,2]
[355544314,1741254631920,-869.09,0.00011793,2]
[355544315,1741254631930,-624.66,0.00011794,2]
[355544316,1741254631940,-500.0,0.00011794,2]
[355544317,1741254631949,-542.55,0.00011794,2]
[355544318,1741254631959,-500.0,0.00011794,2]
[355544319,1741254631969,-500.0,0.00011794,2]
[355544320,1741254631978,-500.0,0.00011794,2]
[355544321,1741254631988,-651.59,0.00011794,2]
[355544322,1741254632001,-500.0,0.00011794,2]
[355544323,1741254632011,-737.35,0.00011794,2]
[355544324,1741254632020,-500.0,0.00011794,2]
[355544325,1741254632031,-500.0,0.00011794,2]
[355544326,1741254632041,-500.0,0.00011794,2]
[355544327,1741254632050,-500.0,0.00011794,2]
[355544329,1741254632059,-527.36295213,0.00011794,2]
[355544330,1741254632068,-500.0,0.00011794,2]
[355544332,1741254632080,-500.0,0.00011794,2]
[355544334,1741254632090,-500.0,0.00011794,2]
[355544336,1741254632099,-500.0,0.00011794,2]
[355544338,1741254632108,-500.0,0.00011794,2]
[355544340,1741254632117,-500.0,0.00011794,2]
[355544342,1741254632126,-500.0,0.00011794,2]
[355544343,1741254632136,-500.0,0.00011794,2]
[355544345,1741254632146,-513.17,0.00011794,2]
[355544347,1741254632155,-511.51514285,0.00011794,2]
[355544349,1741254632166,-572.76,0.00011794,2]
[355544351,1741254632175,-500.0,0.00011794,2]
[355544353,1741254632185,-500.0,0.00011794,2]
[355544355,1741254632194,-500.0,0.00011794,2]
[355544357,1741254632203,-500.0,0.00011794,2]
[355544359,1741254632212,-500.0,0.00011794,2]
[355544360,1741254632221,-184.3693583,0.00011794,2]
[355544362,1741254632231,-718.46,0.00011794,2]
[355544364,1741254632240,-500.0,0.00011794,2]
[355544366,1741254632250,-500.0,0.00011794,2]
[355544368,1741254632259,-253.77904803,0.00011794,2]
[355544409,1741254632547,-246.22095197,0.00011794,2]
[355544411,1741254632556,-199.78695709,0.00011794,2]
[355544413,1741254632567,-524.484153,0.00011794,2]
[355544415,1741254632576,-502.35411988,0.00011794,2]
[355544417,1741254632587,-500.49129411,0.00011794,2]
[355544419,1741254632596,-501.26763408,0.00011794,2]
[355544421,1741254632606,-500.0,0.00011794,2]
[355544423,1741254632615,-500.0,0.00011794,2]
[355544425,1741254632625,-500.0,0.00011794,2]
[355544427,1741254632635,-163.56487716,0.00011794,2]
[355544429,1741254632644,-513.91444384,0.00011794,2]
[355544431,1741254632654,-500.0,0.00011794,2]
[355544433,1741254632663,-500.0,0.00011794,2]
[355544435,1741254632672,-500.0,0.00011794,2]
[355544437,1741254632683,-530.49790133,0.00011794,2]
[355544439,1741254632692,-500.0,0.00011794,2]
[355544441,1741254632701,-500.0,0.00011794,2]
[355544443,1741254632711,-500.0,0.00011794,2]
[355544445,1741254632720,-500.0,0.00011794,2]
[355544447,1741254632730,-500.00408138,0.00011794,2]
[355544449,1741254632739,-500.0,0.00011794,2]
[355544451,1741254632749,-501.00978626,0.00011794,2]
[355544453,1741254632758,-508.68845584,0.00011794,2]
[355544455,1741254632767,-501.57461157,0.00011794,2]
[355544457,1741254632776,-500.0,0.00011794,2]
[355544459,1741254632786,-386.19046015,0.00011794,2]
[355544461,1741254632796,-793.17,0.00011794,2]
[355544463,1741254632805,-500.0,0.00011794,2]
[355544465,1741254632814,-1216.89653,0.00011794,2]
[355544467,1741254632823,-383.4413247,0.00011794,2]
[355544468,1741254632833,-500.0,0.00011794,2]
[355544469,1741254632842,-500.0,0.00011794,2]
[355544470,1741254632852,-500.0,0.00011794,2]
[355544471,1741254632861,-829.91,0.00011794,2]
[355544472,1741254632871,-500.0,0.00011794,2]
[355544473,1741254632882,-500.0,0.00011794,2]
[355544474,1741254632891,-904.48,0.00011794,2]
[355544475,1741254632900,-500.0,0.00011794,2]
[355544476,1741254632909,-509.54,0.00011794,2]
[355544477,1741254632919,-833.318219,0.00011794,2]
[355544478,1741254632928,-500.0,0.00011794,2]
[355544479,1741254632937,-500.0,0.00011794,2]
[355544480,1741254632946,-500.0,0.00011794,2]
[355544481,1741254632956,-500.0,0.00011794,2]
[355544482,1741254632965,-500.0,0.00011794,2]
[355544483,1741254632975,-161.27315,0.00011794,2]
[355544484,1741254632984,-500.0,0.00011794,2]
[355544485,1741254632995,-858.0,0.00011794,2]
[355544486,1741254633007,-811.78,0.00011794,2]
[355544487,1741254633016,-500.0,0.00011794,2]
[355544488,1741254633026,-500.0,0.00011794,2]
[355544489,1741254633036,-500.0,0.00011794,2]
[355544490,1741254633047,-500.0,0.00011794,2]
[355544491,1741254633058,-970.08,0.00011794,2]
[355544492,1741254633068,-500.0,0.00011794,2]
[355544493,1741254633080,-500.0,0.00011794,2]
[355544494,1741254633095,-500.0,0.00011794,2]
[355544495,1741254633104,-747.12,0.00011794,2]
[355544496,1741254633114,-500.0,0.00011794,2]
[355544497,1741254633124,-500.0,0.00011794,2]
[355544498,1741254633135,-685.94,0.00011794,2]
[355544499,1741254633146,-378.64908429,0.00011794,2]
[355544500,1741254633156,-582.82,0.00011794,2]
[355544501,1741254633166,-500.0,0.00011794,2]
[355544502,1741254633176,-370.43741678,0.00011794,2]
[355544503,1741254633186,-500.0,0.00011794,2]
[355544504,1741254633196,-500.0,0.00011794,2]
[355544505,1741254633205,-712.45,0.00011794,2]
[355544506,1741254633215,-594.97,0.00011794,2]
[355544507,1741254633225,-500.0,0.00011794,2]
[355544508,1741254633235,-746.63,0.00011794,2]
[355544509,1741254633246,-500.0,0.00011794,2]
[355544510,1741254633257,-500.0,0.00011794,2]
[355544511,1741254633267,-500.0,0.00011794,2]
[355544512,1741254633276,-500.0,0.00011794,2]
[355544513,1741254633286,-560.07,0.00011794,2]
[355544514,1741254633296,-500.0,0.00011794,2]
[355544515,1741254633306,-741.38,0.00011794,2]
[355544516,1741254633315,-500.0,0.00011794,2]
[355544517,1741254633326,-658.79,0.00011794,2]
[355544518,1741254633336,-844.63,0.00011794,2]
[355544519,1741254633347,-1595.36,0.00011794,2]
[355544520,1741254633358,-509.6,0.00011794,2]
[355544521,1741254633369,-500.0,0.00011794,2]